bitfinex/quotes_BTCUSD_20241001
["timestamp","ask_amount","ask_price","bid_price","bid_amount"]
[1727802831271,0.3174858,62101.0,62100.0,0.26096]
[1727802831489,0.3254858,62101.0,62100.0,0.26096]
[1727802831687,0.3469135,62101.0,62100.0,0.26096]
[1727802831895,0.3389135,62101.0,62100.0,0.26096]
[1727802832099,0.3820208,62101.0,62100.0,0.26096]
[1727802832311,0.3910208,62101.0,62100.0,0.26096]
[1727802832744,0.3990208,62101.0,62100.0,0.56096]
[1727802832948,0.3910208,62101.0,62100.0,0.56096]
[1727802833159,0.49705559,62101.0,62100.0,0.56096]
[1727802833387,0.50505559,62101.0,62100.0,0.56096]
[1727802833589,0.3820208,62101.0,62100.0,0.56096]
[1727802833818,0.3900208,62101.0,62100.0,0.56096]
[1727802834040,0.3980208,62101.0,62100.0,0.56096]
[1727802834246,0.3900208,62101.0,62100.0,0.56096]
[1727802834455,0.3910208,62101.0,62100.0,0.56096]
[1727802834933,0.60453158,62101.0,62100.0,0.56096]
[1727802836318,0.62077477,62101.0,62100.0,0.56096]
[1727802836543,0.63477477,62101.0,62100.0,0.56096]
[1727802836744,0.62077477,62101.0,62100.0,0.56096]
[1727802836956,0.50726399,62101.0,62100.0,0.56096]
[1727802837167,0.52126399,62101.0,62100.0,0.56096]
[1727802837623,0.51926399,62101.0,62100.0,0.56096]
[1727802838090,0.50726399,62101.0,62100.0,0.56096]
[1727802838532,0.52126399,62101.0,62100.0,0.56096]
[1727802838767,0.67771077,62101.0,62100.0,0.56096]
[1727802839402,0.69171077,62101.0,62100.0,0.56096]
[1727802839625,0.67771077,62101.0,62100.0,0.56096]
[1727802840242,0.66371077,62101.0,62100.0,0.56096]
[1727802840458,0.66371077,62101.0,62100.0,0.55896]
[1727802840659,0.67771077,62101.0,62100.0,0.55896]
[1727802840890,0.52126399,62101.0,62100.0,0.55896]
[1727802841334,0.4100208,62101.0,62100.0,0.80896]
[1727802841776,0.4100208,62101.0,62100.0,0.55896]
[1727802841777,0.3960208,62101.0,62100.0,0.55896]
[1727802842182,0.4100208,62101.0,62100.0,0.55896]
[1727802842399,0.48158269,62101.0,62100.0,0.55896]
[1727802842844,0.58158269,62101.0,62100.0,0.55896]
[1727802843263,0.5100208,62101.0,62100.0,0.55896]
[1727802843672,0.78779691,62101.0,62100.0,0.55896]
[1727802844567,0.81304043,62101.0,62100.0,0.55896]
[1727802846284,0.81304043,62101.0,62100.0,0.25896]
[1727802846285,0.53526432,62101.0,62100.0,0.25896]
[1727802847172,0.43526432,62101.0,62100.0,0.25896]
[1727802847625,0.73503336,62101.0,62100.0,0.25896]
[1727802847954,0.27423632,62101.0,62100.0,0.50809]
[1727802848194,0.014,62101.0,62100.0,0.50809]
[1727802848431,0.014,62101.0,62100.0,0.53756]
[1727802848432,0.02761325,62101.0,62100.0,0.53756]
[1727802848692,0.04161325,62101.0,62100.0,0.53756]
[1727802848955,0.02761325,62101.0,62100.0,0.69859]
[1727802849221,0.04161325,62101.0,62100.0,0.53756]
[1727802849447,0.02761325,62101.0,62100.0,0.69859]
[1727802849931,0.01561325,62101.0,62100.0,0.69859]
[1727802850183,0.01761325,62101.0,62100.0,0.53756]
[1727802850443,0.05778496,62101.0,62100.0,0.53756]
[1727802850680,0.01361325,62101.0,62100.0,0.53756]
[1727802850899,0.01361325,62101.0,62100.0,0.69859]
[1727802851600,0.17007105,62101.0,62100.0,0.52756]
[1727802851817,0.43309905,62101.0,62100.0,0.25896]
[1727802852037,0.43474305,62101.0,62100.0,0.25896]
[1727802852263,0.58057658,62101.0,62100.0,0.25896]
[1727802852462,0.59400999,62101.0,62100.0,0.25896]
[1727802852669,0.59100999,62101.0,62100.0,0.25896]
[1727802852899,0.59800999,62101.0,62100.0,0.25896]
[1727802853175,0.58900999,62101.0,62100.0,0.25896]
[1727802853382,0.59100999,62101.0,62100.0,0.25896]
[1727802853594,0.60200999,62101.0,62100.0,0.25896]
[1727802853840,0.58900999,62101.0,62100.0,0.25896]
[1727802854103,0.61200999,62101.0,62100.0,0.25896]
[1727802854526,0.66007092,62101.0,62100.0,0.25896]
[1727802855179,0.707766,62101.0,62100.0,0.25896]
[1727802855400,0.66007092,62101.0,62100.0,0.25896]
[1727802856663,0.73161354,62101.0,62100.0,0.25896]
[1727802857312,0.75546109,62101.0,62100.0,0.25896]
[1727802857765,0.77946402,62101.0,62100.0,0.25896]
[1727802858637,0.60949787,62101.0,62100.0,0.25896]
[1727802858860,0.59849787,62101.0,62100.0,0.25896]
[1727802859085,0.49263594,62101.0,62100.0,0.25896]
[1727802859314,0.62594308,62101.0,62100.0,0.25896]
[1727802859537,0.62537294,62101.0,62100.0,0.25896]
[1727802859767,0.67651258,62101.0,62100.0,0.25896]
[1727802860431,0.66451258,62101.0,62100.0,0.25896]
[1727802861138,0.66395405,62101.0,62100.0,0.25896]
[1727802861575,0.67795405,62101.0,62100.0,0.25896]
[1727802862036,0.53550727,62101.0,62100.0,0.25896]
[1727802862262,0.52150727,62101.0,62100.0,0.25896]
[1727802862713,0.56075132,62101.0,62100.0,0.25896]
[1727802863164,0.51757027,62101.0,62100.0,0.25896]
[1727802863415,0.4086322,62101.0,62100.0,0.25896]
[1727802863611,0.68444268,62101.0,62100.0,0.25896]
[1727802863828,0.53707898,62101.0,62100.0,0.25896]
[1727802864267,0.65107898,62101.0,62100.0,0.25896]
[1727802864720,0.63707898,62101.0,62100.0,0.25896]
[1727802864929,0.65107898,62101.0,62100.0,0.25896]
[1727802865585,0.4946322,62101.0,62100.0,0.25896]
[1727802866066,0.53387652,62101.0,62100.0,0.25896]
[1727802866501,0.51987652,62101.0,62100.0,0.25896]
[1727802866717,0.53387652,62101.0,62100.0,0.25896]
[1727802866935,0.53587652,62101.0,62100.0,0.25896]
[1727802867170,0.6923233,62101.0,62100.0,0.25896]
[1727802867626,0.6903233,62101.0,62100.0,0.25896]
[1727802867846,0.6923233,62101.0,62100.0,0.25896]
[1727802868069,0.8356493,62101.0,62100.0,0.25896]
[1727802868503,0.8216493,62101.0,62100.0,0.25896]
[1727802868738,0.8336493,62101.0,62100.0,0.25896]
[1727802869168,1.7589493,62101.0,62100.0,0.25896]
[1727802869390,1.47317652,62101.0,62100.0,0.25896]
[1727802869613,1.3339322,62101.0,62100.0,0.25896]
[1727802869866,1.45335743,62101.0,62100.0,0.25896]
[1727802870089,1.46735743,62101.0,62100.0,0.25896]
[1727802870306,1.47637898,62101.0,62100.0,0.25896]
[1727802870525,1.49093751,62101.0,62100.0,0.25896]
[1727802870740,1.50450928,62101.0,62100.0,0.25896]
[1727802870971,1.57650928,62101.0,62100.0,0.25896]
[1727802871181,1.59050928,62101.0,62100.0,0.25896]
[1727802871838,1.57650928,62101.0,62100.0,0.25896]
[1727802872058,1.59050928,62101.0,62100.0,0.25896]
[1727802872279,1.60450928,62101.0,62100.0,0.25896]
[1727802872509,1.59050928,62101.0,62100.0,0.25896]
[1727802872950,1.4733057,62101.0,62100.0,0.25896]
[1727802873170,1.4340625,62101.0,62100.0,0.25896]
[1727802873405,0.53239026,62101.0,62100.0,0.33736]
[1727802873637,0.39449389,62101.0,62100.0,0.52916]
[1727802874029,0.33270157,62101.0,62100.0,0.51916]
[1727802874244,0.33270157,62101.0,62100.0,0.52916]
[1727802874245,0.36070157,62101.0,62100.0,0.52916]
[1727802874456,0.34670157,62101.0,62100.0,0.52916]
[1727802874675,0.02921577,62101.0,62100.0,0.69019]
[1727802874889,0.03921577,62101.0,62100.0,0.52916]
[1727802875330,0.35670157,62101.0,62100.0,0.52916]
[1727802875550,0.34670157,62101.0,62100.0,0.52916]
[1727802875995,0.33270157,62101.0,62100.0,0.52916]
[1727802876221,0.02421577,62101.0,62100.0,0.52916]
[1727802876452,0.44150653,62107.0,62100.0,0.52916]
[1727802876453,0.07333269,62108.0,62107.0,0.0907]
[1727802876683,0.1581018,62108.0,62107.0,0.0907]
[1727802877125,0.1581018,62108.0,62107.0,0.251712]
[1727802877350,0.001644,62108.0,62107.0,0.251712]
[1727802877560,0.001644,62108.0,62107.0,0.0907]
[1727802877783,0.006644,62108.0,62107.0,0.0907]
[1727802877996,0.006644,62108.0,62107.0,0.251712]
[1727802878214,0.321964,62119.0,62108.0,0.166009]
[1727802878433,0.160989,62116.0,62108.0,0.171009]
[1727802878660,0.321964,62119.0,62108.0,0.171009]
[1727802878661,0.40099776,62115.0,62108.0,0.171009]
[1727802879109,0.064514,62121.0,62108.0,0.171009]
[1727802879337,0.07168869,62125.0,62122.0,0.01]
[1727802879560,0.064509,62126.0,62122.0,0.2704]
[1727802879786,0.40097576,62123.0,62122.0,0.2704]
[1727802880046,0.55743356,62123.0,62122.0,0.2704]
[1727802880426,0.3174278,62123.0,62122.0,0.2704]
[1727802880873,0.3314278,62123.0,62122.0,0.0807]
[1727802881076,0.3314278,62123.0,62122.0,0.001]
[1727802881302,0.4434278,62123.0,62122.0,0.001]
[1727802881453,0.64786178,62123.0,62122.0,0.001]
[1727802882074,0.63586178,62123.0,62122.0,0.001]
[1727802882276,0.260994,62114.0,62113.0,0.24000576]
[1727802882494,0.69522791,62114.0,62113.0,0.24000576]
[1727802882638,0.161017,62105.0,62104.0,0.31770576]
[1727802882852,0.161017,62105.0,62083.0,0.322146]
[1727802882853,0.322046,62103.0,62097.0,0.0798]
[1727802883051,0.161028,62101.0,62097.0,0.0798]
[1727802883258,0.3174858,62101.0,62097.0,0.0798]
[1727802884309,0.3274858,62101.0,62097.0,0.0798]
[1727802885096,0.48393258,62101.0,62097.0,0.0798]
[1727802885233,0.3274858,62101.0,62097.0,0.0798]
[1727802885468,0.3354858,62101.0,62097.0,0.0798]
[1727802887118,0.3354858,62101.0,62100.0,0.65896]
[1727802887343,0.4354858,62101.0,62100.0,0.65896]
[1727802887818,0.48313308,62101.0,62100.0,0.65896]
[1727802888061,0.59193258,62101.0,62100.0,0.65896]
[1727802888289,0.67699421,62101.0,62100.0,0.65896]
[1727802888508,0.67690701,62101.0,62100.0,0.65896]
[1727802888716,0.60544858,62101.0,62100.0,0.65896]
[1727802888931,0.63069327,62101.0,62100.0,0.65896]
[1727802889634,0.63233727,62101.0,62100.0,0.65896]
[1727802889856,0.62233727,62101.0,62100.0,0.65896]
[1727802890072,0.60309258,62101.0,62100.0,0.65896]
[1727802890525,0.61709258,62101.0,62100.0,0.65896]
[1727802890962,0.53212706,62101.0,62100.0,0.65896]
[1727802892256,0.50829942,62101.0,62100.0,0.65896]
[1727802892489,0.4606458,62101.0,62100.0,0.65896]
[1727802892911,0.3606458,62101.0,62100.0,0.65896]
[1727802893203,0.37188725,62101.0,62100.0,0.65896]
[1727802893433,0.37088725,62101.0,62100.0,0.65896]
[1727802893637,0.38488725,62101.0,62100.0,0.65896]
[1727802894075,0.37088725,62101.0,62100.0,0.65896]
[1727802894550,0.38488725,62101.0,62100.0,0.65896]
[1727802894796,0.61189301,62101.0,62100.0,0.65896]
[1727802895024,0.35788725,62101.0,62100.0,0.65896]
[1727802895242,0.38588725,62101.0,62100.0,0.65896]
[1727802895457,0.37188725,62101.0,62100.0,0.65896]
[1727802896103,0.38488725,62101.0,62100.0,0.65896]
[1727802896528,0.50309258,62101.0,62100.0,0.65896]
[1727802896733,0.48909258,62101.0,62100.0,0.65896]
[1727802896963,0.5367866,62101.0,62100.0,0.65896]
[1727802897213,0.5507866,62101.0,62100.0,0.65896]
[1727802897418,0.65078501,62101.0,62100.0,0.65896]
[1727802897638,0.58909258,62101.0,62100.0,0.65896]
[1727802897857,0.67463122,62101.0,62100.0,0.65896]
[1727802898087,0.54203066,62101.0,62100.0,0.65896]
[1727802898568,0.55603066,62101.0,62100.0,0.66396]
[1727802898815,0.4606458,62101.0,62100.0,0.65896]
[1727802899071,0.4606458,62101.0,62100.0,0.66396]
[1727802899072,0.1856178,62101.0,62100.0,0.66396]
[1727802899335,0.1996178,62101.0,62100.0,0.66896]
[1727802899632,0.1856178,62101.0,62100.0,0.66896]
[1727802900020,0.3606458,62101.0,62100.0,0.66896]
[1727802900250,0.02916,62101.0,62100.0,0.66896]
[1727802900478,0.04316,62101.0,62100.0,0.93186]
[1727802900716,0.204188,62101.0,62100.0,0.93186]
[1727802901180,0.204188,62101.0,62100.0,0.73896]
[1727802901181,0.3466458,62101.0,62100.0,0.73896]
[1727802901405,0.3326458,62101.0,62100.0,0.73896]
[1727802901630,0.3406458,62101.0,62100.0,0.73896]
[1727802901860,0.3506458,62101.0,62100.0,0.65896]
[1727802902088,0.59909258,62101.0,62100.0,0.65896]
[1727802902330,0.60909258,62101.0,62100.0,0.65896]
[1727802902542,0.69452581,62101.0,62100.0,0.65896]
[1727802902996,0.73152581,62101.0,62100.0,0.65896]
[1727802903233,0.56180911,62099.0,62098.0,0.000822]
[1727802903456,0.71826691,62099.0,62098.0,0.000822]
[1727802903713,0.69526691,62099.0,62098.0,0.000822]
[1727802903938,0.4174908,62099.0,62098.0,0.000822]
[1727802904176,0.3174908,62099.0,62098.0,0.010822]
[1727802904401,0.01521324,62101.0,62100.0,0.01]
[1727802904628,0.01521324,62101.0,62098.0,0.000822]
[1727802904629,0.165033,62099.0,62098.0,0.000822]
[1727802904877,0.1604578,62099.0,62098.0,0.000822]
[1727802905087,0.33106004,62099.0,62098.0,0.000822]
[1727802906244,0.3174908,62099.0,62098.0,0.000822]
[1727802906458,0.3314908,62099.0,62098.0,0.000822]
[1727802906675,0.66782114,62099.0,62098.0,0.001822]
[1727802906895,0.7930636,62099.0,62098.0,0.001822]
[1727802907121,0.53905784,62099.0,62098.0,0.000822]
[1727802907335,0.52381538,62099.0,62098.0,0.001822]
[1727802907558,0.57205965,62099.0,62098.0,0.001822]
[1727802907779,0.58460221,62099.0,62098.0,0.001822]
[1727802908007,0.66711009,62099.0,62090.0,0.00082]
[1727802908237,0.2611,62073.0,62072.0,0.24000576]
[1727802908461,0.59683812,62073.0,62072.0,0.24000576]
[1727802908682,0.59683812,62073.0,62063.0,0.24000576]
[1727802908683,0.422209,62072.0,62063.0,0.24000576]
[1727802908900,0.01353512,62073.0,62068.0,0.161112]
[1727802908901,0.01353512,62071.0,62068.0,0.161112]
[1727802909125,0.02525191,62073.0,62066.0,0.322234]
[1727802909339,0.1564578,62070.0,62062.0,0.075]
[1727802909560,0.01350667,62069.0,62062.0,0.075]
[1727802909788,0.33107747,62068.0,62062.0,0.075]
[1727802910077,0.38281941,62068.0,62062.0,0.075]
[1727802910572,0.48281941,62068.0,62056.0,0.0001]
[1727802910822,0.48281941,62068.0,62059.0,0.24000576]
[1727802911072,0.48281941,62068.0,62056.0,0.0001]
[1727802911397,0.43107747,62068.0,62056.0,0.0001]
[1727802911591,0.44307747,62068.0,62067.0,0.00182]
[1727802912139,0.44307747,62068.0,62067.0,0.00082]
[1727802912140,0.43107747,62068.0,62067.0,0.00082]
[1727802912590,0.4415708,62068.0,62067.0,0.00182]
[1727802912836,0.44409352,62068.0,62067.0,0.00182]
[1727802913083,0.61042106,62068.0,62067.0,0.00182]
[1727802913332,0.59716557,62068.0,62067.0,0.00182]
[1727802913821,0.58416557,62068.0,62067.0,0.00082]
[1727802914072,0.18198052,62068.0,62067.0,0.00082]
[1727802914325,0.35609352,62068.0,62067.0,0.00182]
[1727802914591,0.45614497,62068.0,62067.0,0.00182]
[1727802914859,0.35609352,62068.0,62067.0,0.00182]
[1727802915367,0.45609352,62068.0,62067.0,0.00182]
[1727802915609,0.4655708,62068.0,62067.0,0.00182]
[1727802916126,0.47913221,62068.0,62067.0,0.00182]
[1727802916395,0.66083597,62068.0,62067.0,0.00182]
[1727802916644,0.64883597,62068.0,62067.0,0.00182]
[1727802916893,0.46938919,62068.0,62067.0,0.40182]
[1727802917352,0.45638919,62068.0,62067.0,0.40082]
[1727802917572,0.47038919,62068.0,62067.0,0.40082]
[1727802917797,0.61409041,62068.0,62067.0,0.40082]
[1727802918031,0.62809041,62068.0,62067.0,0.40082]
[1727802918502,0.63709041,62068.0,62067.0,0.40082]
[1727802918722,0.609529,62068.0,62067.0,0.40082]
[1727802919008,0.65107865,62068.0,62067.0,0.40082]
[1727802919224,0.63707865,62068.0,62067.0,0.40082]
[1727802919453,0.62807865,62068.0,62067.0,0.40082]
[1727802919904,0.61407865,62068.0,62067.0,0.40082]
[1727802920125,0.58882167,62068.0,62067.0,0.40082]
[1727802920359,0.58882167,62068.0,62067.0,0.34322986]
[1727802920360,0.57755247,62068.0,62067.0,0.34322986]
[1727802920581,0.60555247,62068.0,62067.0,0.14322986]
[1727802920803,0.63555247,62068.0,62067.0,0.03597052]
[1727802921019,0.63355247,62068.0,62067.0,0.03597052]
[1727802921241,0.61455247,62068.0,62067.0,0.03597052]
[1727802921709,0.62855247,62068.0,62067.0,0.03597052]
[1727802921934,0.63055247,62068.0,62067.0,0.03597052]
[1727802922164,0.64211908,62068.0,62067.0,0.03597052]
[1727802922401,0.61456943,62068.0,62067.0,0.03597052]
[1727802922632,0.62710744,62068.0,62067.0,0.01408166]
[1727802923085,0.64110744,62068.0,62067.0,0.01408166]
[1727802923302,0.66836836,62068.0,62067.0,0.01408166]
[1727802923530,0.67993734,62068.0,62067.0,0.01408166]
[1727802923950,0.261142,62057.0,62056.0,0.0001]
[1727802924172,0.78594361,62057.0,62056.0,0.0001]
[1727802924846,0.8112063,62057.0,62056.0,0.0001]
[1727802925062,0.8252063,62057.0,62056.0,0.0001]
[1727802925560,0.83871185,62057.0,62056.0,0.0001]
[1727802925779,0.8349897,62057.0,62056.0,0.0001]
[1727802925992,0.8509897,62057.0,62056.0,0.0001]
[1727802926207,0.53893111,62052.0,62051.0,0.00470269]
[1727802926431,0.85862585,62052.0,62051.0,0.00470269]
[1727802927118,0.70889446,62052.0,62051.0,0.00470269]
[1727802927352,0.43111835,62052.0,62051.0,0.00470269]
[1727802927570,0.44511835,62052.0,62051.0,0.00470269]
[1727802928243,0.45911835,62052.0,62051.0,0.00470269]
[1727802928466,0.45911835,62052.0,62051.0,0.28440269]
[1727802928696,0.4456128,62052.0,62051.0,0.28440269]
[1727802928919,0.35914283,62052.0,62051.0,0.28440269]
[1727802929153,0.20268503,62052.0,62051.0,0.28440269]
[1727802929376,0.18868503,62052.0,62051.0,0.28440269]
[1727802929603,0.44247063,62052.0,62051.0,0.28440269]
[1727802930064,0.41447063,62052.0,62051.0,0.28440269]
[1727802930300,0.42047063,62052.0,62051.0,0.28440269]
[1727802930528,0.42847063,62052.0,62051.0,0.28440269]
[1727802930955,0.41447063,62052.0,62051.0,0.28440269]
[1727802931447,0.45173126,62052.0,62051.0,0.28440269]
[1727802931955,0.37940346,62052.0,62051.0,0.20280269]
[1727802932437,0.37940346,62052.0,62051.0,0.00470269]
[1727802933317,0.47940346,62052.0,62051.0,0.00470269]
[1727802933542,0.261157,62051.0,62050.0,0.000821]
[1727802933761,0.57132209,62051.0,62050.0,0.000821]
[1727802934004,0.8490982,62051.0,62050.0,0.000821]
[1727802934492,0.83556817,62051.0,62050.0,0.000821]
[1727802934716,0.84917288,62051.0,62050.0,0.000821]
[1727802934933,0.86017288,62051.0,62050.0,0.000821]
[1727802935370,0.87017288,62051.0,62050.0,0.000821]
[1727802935820,0.46420825,62051.0,62050.0,0.000821]
[1727802936036,0.47820825,62051.0,62050.0,0.000821]
[1727802936251,0.46420825,62051.0,62050.0,0.000821]
[1727802936694,0.45621951,62051.0,62050.0,0.000821]
[1727802937153,0.44521951,62051.0,62050.0,0.000821]
[1727802937382,0.58643186,62051.0,62050.0,0.000821]
[1727802937604,0.60043186,62051.0,62050.0,0.000821]
[1727802937850,0.58682715,62051.0,62050.0,0.000821]
[1727802938090,0.58649655,62051.0,62050.0,0.000821]
[1727802938312,0.4452842,62051.0,62050.0,0.000821]
[1727802938541,0.3592842,62051.0,62050.0,0.270121]
[1727802939470,0.3452842,62051.0,62050.0,0.270121]
[1727802939706,0.38120208,62051.0,62050.0,0.270121]
[1727802939930,0.36720208,62051.0,62050.0,0.270121]
[1727802940151,0.37846338,62051.0,62050.0,0.270121]
[1727802940373,0.39246338,62051.0,62050.0,0.270121]
[1727802940631,0.52840012,62051.0,62050.0,0.270121]
[1727802940855,0.59248224,62051.0,62050.0,0.191921]
[1727802941084,0.6147339,62051.0,62050.0,0.191921]
[1727802941304,0.5812522,62051.0,62050.0,0.191921]
[1727802941534,0.34531546,62051.0,62050.0,0.191921]
[1727802941752,0.33131546,62051.0,62050.0,0.191921]
[1727802942002,0.34531546,62051.0,62050.0,0.191921]
[1727802942221,0.35731546,62051.0,62050.0,0.191921]
[1727802942437,0.34531546,62051.0,62050.0,0.191921]
[1727802943329,0.33131546,62051.0,62050.0,0.191921]
[1727802943540,0.34531546,62051.0,62050.0,0.191921]
[1727802943986,0.42965725,62051.0,62050.0,0.191921]
[1727802944220,0.66966301,62051.0,62050.0,0.000821]
[1727802944502,0.6230904,62051.0,62050.0,0.000821]
[1727802944711,0.6230904,62051.0,62038.0,0.000642]
[1727802944712,0.161188,62039.0,62038.0,0.000642]
[1727802944937,0.33134646,62039.0,62038.0,0.000642]
[1727802945158,0.01370066,62039.0,62038.0,0.000642]
[1727802945382,0.01370066,62039.0,62038.0,0.190542]
[1727802945612,0.01370066,62039.0,62038.0,0.43795653]
[1727802945840,0.02526262,62041.0,62040.0,0.161186]
[1727802946061,0.02526262,62041.0,62040.0,0.434086]
[1727802946509,0.24000576,62045.0,62044.0,0.161175]
[1727802947178,0.02526143,62047.0,62045.0,0.161171]
[1727802947395,0.02526143,62047.0,62046.0,0.16117]
[1727802947820,0.02526143,62047.0,62046.0,0.43467071]
[1727802948042,0.02526143,62047.0,62046.0,0.43237]
[1727802948298,0.24000576,62059.0,62058.0,0.432337]
[1727802948515,0.161097,62075.0,62064.0,0.322247]
[1727802948739,0.00272969,62079.0,62068.0,0.161113]
[1727802948964,0.24000576,62076.0,62068.0,0.161113]
[1727802949187,0.24000576,62076.0,62075.0,0.161095]
[1727802949416,0.24000576,62076.0,62075.0,0.420495]
[1727802949666,0.161073,62084.0,62077.0,0.322176]
[1727802949890,0.24000576,62085.0,62075.0,0.581589]
[1727802949891,0.1564578,62083.0,62075.0,0.581589]
[1727802950113,0.1564578,62083.0,62076.0,0.32540343]
[1727802950348,0.24000576,62085.0,62077.0,0.00322137]
[1727802950633,0.00164,62090.0,62085.0,0.0828]
[1727802950923,0.02688603,62090.0,62086.0,0.1914]
[1727802951094,0.24000576,62096.0,62091.0,0.322106]
[1727802951311,0.24000576,62096.0,62088.0,0.1896]
[1727802951528,0.24000576,62096.0,62091.0,0.161051]
[1727802951747,0.24000576,62096.0,62095.0,0.161043]
[1727802951970,0.24000576,62096.0,62089.0,0.322115]
[1727802951971,0.001644,62101.0,62089.0,0.322115]
[1727802952199,0.24000576,62099.0,62089.0,0.322115]
[1727802952418,0.24000576,62099.0,62094.0,0.161044]
[1727802952859,0.006,62096.0,62094.0,0.161044]
[1727802953085,0.006,62096.0,62088.0,0.1896]
[1727802953308,0.322097,62093.0,62088.0,0.1896]
[1727802953525,0.1564578,62092.0,62087.0,0.0799]
[1727802953740,0.161061,62088.0,62087.0,0.0799]
[1727802953972,0.161061,62088.0,62080.0,0.1854]
[1727802953973,0.161079,62081.0,62080.0,0.1854]
[1727802954196,0.161088,62078.0,62071.0,0.42640576]
[1727802954433,0.1564578,62077.0,62061.0,0.1864]
[1727802954659,0.16112,62066.0,62061.0,0.1864]
[1727802954876,0.161129,62062.0,62061.0,0.1864]
[1727802955341,0.3175868,62062.0,62061.0,0.1864]
[1727802955562,0.1564578,62062.0,62048.0,0.516831]
[1727802955788,0.1564578,62061.0,62051.0,0.24000576]
[1727802956007,0.161143,62057.0,62051.0,0.161157]
[1727802956229,0.24000576,62072.0,62048.0,0.1945]
[1727802956230,0.161152,62053.0,62048.0,0.1945]
[1727802956447,0.161156,62052.0,62048.0,0.1945]
[1727802956892,0.16115,62054.0,62049.0,0.0783]
[1727802957108,0.1564578,62054.0,62049.0,0.0783]
[1727802957639,0.56227676,62060.0,62049.0,0.0783]
[1727802957857,0.161147,62056.0,62050.0,0.161158]
[1727802958084,0.001,62052.0,62049.0,0.400623]
[1727802958313,0.001,62052.0,62051.0,0.161157]
[1727802958743,0.161135,62060.0,62052.0,0.161154]
[1727802958952,0.161135,62060.0,62054.0,0.161148]
[1727802958953,0.24000576,62057.0,62054.0,0.161148]
[1727802959182,0.24000576,62057.0,62050.0,0.322318]
[1727802959412,0.161146,62056.0,62051.0,0.161155]
[1727802959651,0.1564578,62056.0,62049.0,0.0783]
[1727802960331,0.322247,62065.0,62054.0,0.322296]
[1727802960556,0.005,62057.0,62056.0,0.161144]
[1727802961028,0.24000576,62063.0,62060.0,0.161134]
[1727802961473,0.1564578,62062.0,62049.0,0.0783]
[1727802961908,0.161149,62055.0,62050.0,0.161159]
[1727802962123,0.1564578,62062.0,62050.0,0.161159]
[1727802962124,0.006,62057.0,62050.0,0.32232]
[1727802962356,0.006,62057.0,62051.0,0.322313]
[1727802962591,0.006,62057.0,62056.0,0.161144]
[1727802963505,0.24000576,62061.0,62049.0,0.0783]
[1727802963930,0.005,62057.0,62056.0,0.161144]
[1727802963936,0.011,62062.0,62061.0,0.161131]
[1727802964155,0.24000576,62060.0,62053.0,0.322303]
[1727802964449,0.172129,62062.0,62056.0,0.161142]
[1727802964681,0.1564578,62066.0,62056.0,0.322288]
[1727802964925,0.009,62061.0,62059.0,0.0815]
[1727802965140,0.009,62061.0,62060.0,0.161134]
[1727802965359,0.009,62061.0,62059.0,0.242636]
[1727802965584,0.24000576,62060.0,62059.0,0.0815]
[1727802965839,0.161134,62060.0,62059.0,0.0815]
[1727802966602,0.008,62060.0,62059.0,0.0815]
[1727802966850,0.322165,62080.0,62062.0,0.322256]
[1727802967111,0.322165,62080.0,62059.0,0.08471642]
[1727802967112,0.24000576,62063.0,62059.0,0.0815]
[1727802967353,0.008,62060.0,62059.0,0.242636]
[1727802967565,0.008,62060.0,62059.0,0.0815]
[1727802967814,0.3255918,62060.0,62044.0,0.322349]
[1727802968049,0.54299687,62069.0,62044.0,0.322349]
[1727802968050,0.322287,62057.0,62049.0,0.0822]
[1727802968266,0.3176028,62056.0,62052.0,0.161153]
[1727802968499,0.1564578,62056.0,62050.0,0.322318]
[1727802968718,0.16116,62050.0,62049.0,0.0822]
[1727802968942,0.16116,62050.0,62035.0,1.000821]
[1727802968943,0.1564578,62050.0,62039.0,0.0762]
[1727802969177,0.1564578,62049.0,62039.0,0.237387]
[1727802969414,0.161176,62044.0,62040.0,0.161184]
[1727802969669,0.161178,62043.0,62039.0,0.237387]
[1727802969892,0.1564578,62044.0,62039.0,0.0762]
[1727802970153,0.1564578,62044.0,62041.0,0.161183]
[1727802970376,0.3176338,62044.0,62040.0,0.161185]
[1727802971280,0.3236338,62044.0,62040.0,0.161186]
[1727802971519,0.3236338,62044.0,62039.0,0.48356]
[1727802971520,0.1624578,62044.0,62039.0,0.48356]
[1727802971757,0.006,62044.0,62043.0,0.161178]
[1727802971982,0.013,62044.0,62043.0,0.161178]
[1727802972217,0.013,62044.0,62040.0,0.001]
[1727802972439,0.322331,62049.0,62038.0,0.175135]
[1727802972440,0.322331,62049.0,62038.0,0.497517]
[1727802972687,0.006,62044.0,62039.0,0.322373]
[1727802972918,0.007,62044.0,62039.0,0.001]
[1727802973147,0.007,62044.0,62043.0,0.161178]
[1727802973370,0.01,62044.0,62043.0,0.16440119]
[1727802973591,0.007,62044.0,62043.0,0.161178]
[1727802974058,0.007,62044.0,62043.0,0.3176358]
[1727802974059,0.004,62044.0,62043.0,0.3176358]
[1727802974287,0.60966521,62079.0,62061.0,0.161131]
[1727802974288,0.322218,62070.0,62061.0,0.161131]
[1727802974531,0.161103,62073.0,62061.0,0.161131]
[1727802974766,0.161096,62075.0,62068.0,0.161113]
[1727802974983,0.161096,62075.0,62062.0,0.1975]
[1727802974984,0.322195,62075.0,62062.0,0.1975]
[1727802975237,0.161122,62065.0,62061.0,0.23913]
[1727802975465,0.4787068,62064.0,62055.0,0.0767]
[1727802975683,0.1564578,62064.0,62048.0,0.0767]
[1727802975898,0.168129,62062.0,62061.0,0.001]
[1727802976139,0.88685056,62062.0,62061.0,0.001]
[1727802976351,0.6468448,62062.0,62061.0,0.001]
[1727802976619,0.92458268,62062.0,62061.0,0.001]
[1727802976834,1.20402946,62062.0,62061.0,0.001]
[1727802977059,0.161168,62047.0,62046.0,0.24000576]
[1727802977518,0.161168,62047.0,62043.0,0.161177]
[1727802977731,0.161168,62047.0,62041.0,0.161182]
[1727802977732,0.161173,62045.0,62041.0,0.161182]
[1727802977977,0.1564578,62045.0,62036.0,0.56239676]
[1727802978215,0.1564578,62045.0,62040.0,0.322371]